[Event "Turkish Super League 2019"]
[Site "Konya"]
[Date "2019.07.21"]
[Round "5"]
[White "Benidze, Davit"]
[Black "Sanal, Vahap"]
[Result "1-0"]
[ECO "E08"]
[WhiteElo "2469"]
[BlackElo "2520"]
[Annotator "ChessBase"]
[PlyCount "67"]
[EventDate "2019.07.17"]
[EventType "team-tourn"]
[EventCountry "TUR"]
[SourceTitle "playchess.com"]
[Source "ChessBase"]
[SourceQuality "1"]
[TimeControl "40/5400+30:1800+30"]

1. Nf3 Nf6 2. c4 e6 3. g3 d5 4. Bg2 Be7 5. O-O O-O 6. d4 c6 7. Qc2 b6 8. b3 Nbd7 9. Rd1 Bb7 10. Nc3 Rc8 11. e4 a5 {[%emt 0:37:30]} 12. Bf4 {[%emt 0:29:00]} Ba6 {[%emt 0:04:30]} 13. Bf1 {[%emt 0:07:30]} Nxe4 {[%emt 0:05:30]} 14. Nxe4 {[%emt 0:00:30]} dxe4 {[%emt 0:00:30]} 15. Qxe4 {[%emt 0:00:00]} c5 {[%emt 0:02:30]} 16. Bg2 {[%emt 0:04:00]} cxd4 {[%emt 0:16:30]} 17. Nxd4 {[%emt 0:00:30]} Nc5 {[%emt 0:00:30]} 18. Qe2 {[%emt 0:00:00]} Qe8 {[%emt 0:02:30]} 19. Nb5 {[%emt 0:00:00]} Bb7 {[%emt 0:11:24]} 20. Bxb7 {[%emt 0:03:30]} Nxb7 {[%emt 0:00:30]} 21. Qf3 {[%emt 0:00:00]} Nd8 {[%emt 0:01:08]} 22. Nd6 {[%emt 0:06:00]} Qc6 {[%emt 0:01:29]} 23. Qxc6 {[%emt 0:00:30]} Rxc6 {[%emt 0:00:30]} 24. Nb5 {[%emt 0:00:00]} Bf6 {[%emt 0:05:46]} 25. Rac1 {[%emt 0:01:00]} e5 {[%emt 0:00:28]} 26. Be3 {[%emt 0:00:30]} Nb7 {[%emt 0:00:24]} 27. a3 {[%emt 0:04:30]} Rd8 {[%emt 0:11:04]} 28. Rxd8+ {[%emt 0:00:30]} Nxd8 {[%emt 0:00:00]} 29. Rd1 {[%emt 0:00:00]} Be7 {[%emt 0:00:57]} 30. Na7 {[%emt 0:00:00]} Re6 {[%emt 0:00:44]} 31. Nc8 {[%emt 0:00:30]} Kf8 {[%emt 0:00:00]} 32. Bxb6 {[%emt 0:01:30]} Rc6 {[%emt 0:00:30]} 33. Nxe7 {[%emt 0:00:30]} Rxb6 {[%emt 0:00:30]} 34. Nc8 {[%emt 0:00:00]} 1-0

[Event "Turkish Super League 2019"]
[Site "Konya"]
[Date "2019.07.21"]
[Round "5"]
[White "Tsolakidou, Stavroula"]
[Black "Savina, Anastasia"]
[Result "0-1"]
[ECO "E75"]
[WhiteElo "2423"]
[BlackElo "2344"]
[Annotator "NA"]
[PlyCount "72"]
[EventDate "2019.07.17"]
[EventType "team-tourn"]
[EventCountry "TUR"]
[SourceTitle "playchess.com"]
[Source "ChessBase"]
[SourceQuality "1"]
[TimeControl "40/5400+30:1800+30"]

1. d4 Nf6 2. c4 g6 3. Nc3 Bg7 4. e4 d6 5. Be2 O-O 6. Bg5 c5 7. d5 h6 8. Be3 e6 9. Nf3 exd5 10. cxd5 b5 11. e5 Ng4 12. Nxb5 Nxe3 13. fxe3 Nd7 14. exd6 {[%emt 0:09:00]} Ne5 {[%emt 1:04:00]} 15. Qd2 {[%emt 0:24:30]} Rb8 {[%emt 0:08:30]} 16. Nc3 {[%emt 0:08:30]} Nxf3+ {[%emt 0:05:35]} 17. Bxf3 {[%emt 0:02:30]} Ba6 {[%emt 0:04:14]} 18. Rc1 {[%emt 0:11:30]} Re8 {[%emt 0:07:20]} 19. Rc2 {[%emt 0:03:30]} Bd4 {[%emt 0:07:43]} 20. Nd1 {[%emt 0:08:30]} Qxd6 {[%emt 0:01:32]} 21. Kf2 {[%emt 0:15:44]} Be5 {[%emt 0:00:12]} 22. g3 {[%emt 0:00:26]} h5 {[%emt 0:00:52]} 23. Kg2 {[%emt 0:04:41]} h4 {[%emt 0:00:55]} 24. Nf2 {[%emt 0:05:33]} Bxg3 {[%emt 0:00:34]} 25. Ne4 {[%emt 0:02:13]} Rxe4 {[%emt 0:00:33]} 26. Bxe4 {[%emt 0:00:30]} Rb4 {[%emt 0:00:24]} 27. Bf3 {[%emt 0:02:35]} Bxh2 {[%emt 0:00:30]} 28. Qe1 {[%emt 0:02:18]} Bg3 {[%emt 0:00:31]} 29. Qd2 {[%emt 0:00:16]} Bh2 {[%emt 0:00:33]} 30. Qe1 {[%emt 0:00:40]} Bg3 {[%emt 0:00:29]} 31. Qd2 {[%emt 0:00:42]} Qf6 {[%emt 0:00:29]} 32. Rhc1 {[%emt 0:01:48]} Bd6 {[%emt 0:00:29]} 33. e4 {[%emt 0:00:33]} h3+ {[%emt 0:00:27]} 34. Kf2 {[%emt 0:00:29]} Qh4+ {[%emt 0:00:21]} 35. Kg1 {[%emt 0:00:53]} Qg3+ {[%emt 0:00:16]} 36. Bg2 {[%emt 0:00:00]} Qh2+ {[%emt 0:00:47]} 0-1

[Event "Turkish Super League 2019"]
[Site "Konya"]
[Date "2019.07.21"]
[Round "5"]
[White "Osmak, Iulija"]
[Black "Mammadzada, Gunay"]
[Result "0-1"]
[ECO "D10"]
[WhiteElo "2395"]
[BlackElo "2427"]
[Annotator "NA"]
[PlyCount "138"]
[EventDate "2019.07.17"]
[EventType "team-tourn"]
[EventCountry "TUR"]
[SourceTitle "playchess.com"]
[Source "ChessBase"]
[SourceQuality "1"]
[TimeControl "40/5400+30:1800+30"]

1. d4 d5 2. c4 c6 3. cxd5 cxd5 4. Nc3 Nf6 5. Bf4 Nc6 6. e3 Bg4 7. Qb3 Na5 8. Qa4+ Bd7 9. Qc2 e6 10. Nf3 Be7 11. h3 Rc8 12. Bd3 Nc4 13. O-O Ne4 {[%emt 0:38:30]} 14. Bxe4 {[%emt 0:19:00]} dxe4 {[%emt 0:00:30]} 15. Ne5 {[%emt 0:04:30]} f5 {[%emt 0:07:30]} 16. Rfd1 {[%emt 0:21:30]} O-O {[%emt 0:05:30]} 17. d5 {[%emt 0:10:30]} Nxe5 {[%emt 0:08:30]} 18. Bxe5 {[%emt 0:00:30]} Qb6 {[%emt 0:01:30]} 19. Qe2 {[%emt 0:17:30]} Rfd8 {[%emt 0:03:30]} 20. Rd2 {[%emt 0:05:30]} Bb4 {[%emt 0:10:30]} 21. Qh5 {[%emt 0:07:47]} Be7 {[%emt 0:05:06]} 22. d6 {[%emt 0:07:13]} Bf8 {[%emt 0:01:20]} 23. Qg5 {[%emt 0:01:44]} Be8 {[%emt 0:01:51]} 24. Rad1 {[%emt 0:00:59]} Rd7 {[%emt 0:00:28]} 25. Ne2 {[%emt 0:03:25]} h6 {[%emt 0:06:26]} 26. Qf4 {[%emt 0:00:36]} Bf7 {[%emt 0:06:51]} 27. g4 {[%emt 0:00:59]} g6 {[%emt 0:01:12]} 28. Kh1 {[%emt 0:01:40]} Qd8 {[%emt 0:02:11]} 29. Bc3 {[%emt 0:00:31]} Bg7 {[%emt 0:01:58]} 30. Rg1 {[%emt 0:00:28]} Qh4 {[%emt 0:00:27]} 31. Kh2 {[%emt 0:00:34]} g5 {[%emt 0:01:20]} 32. Qg3 {[%emt 0:00:30]} Qxg3+ {[%emt 0:00:00]} 33. Nxg3 {[%emt 0:00:00]} Bxc3 {[%emt 0:00:30]} 34. bxc3 {[%emt 0:00:00]} Bg6 {[%emt 0:00:00]} 35. gxf5 {[%emt 0:01:44]} exf5 {[%emt 0:00:28]} 36. Rd5 {[%emt 0:00:30]} Kf7 {[%emt 0:00:30]} 37. Rgd1 {[%emt 0:00:30]} Ke6 {[%emt 0:00:30]} 38. R5d2 {[%emt 0:00:30]} Rc6 {[%emt 0:00:30]} 39. Ne2 {[%emt 0:00:30]} Rcxd6 {[%emt 0:00:30]} 40. Nd4+ {[%emt 0:00:30]} Kf6 {[%emt 0:00:30]} 41. Rb1 {[%emt 0:30:30]} Bf7 {[%emt 0:06:52]} 42. Rb4 {[%emt 0:00:00]} Rd5 {[%emt 0:03:30]} 43. Rdb2 {[%emt 0:00:00]} b6 {[%emt 0:00:30]} 44. Ra4 {[%emt 0:00:00]} Rc7 {[%emt 0:02:30]} 45. c4 {[%emt 0:00:00]} Rdc5 {[%emt 0:05:32]} 46. Nb5 {[%emt 0:00:00]} Be8 {[%emt 0:00:11]} 47. Ra6 {[%emt 0:00:00]} Bxb5 {[%emt 0:01:21]} 48. cxb5 {[%emt 0:00:00]} Rc1 {[%emt 0:05:17]} 49. Kg2 {[%emt 0:00:00]} f4 {[%emt 0:01:39]} 50. Ra4 {[%emt 0:00:00]} Kf5 {[%emt 0:02:23]} 51. Rd2 {[%emt 0:00:59]} fxe3 {[%emt 0:02:39]} 52. fxe3 {[%emt 0:00:12]} R1c2 {[%emt 0:01:36]} 53. Rxc2 {[%emt 0:00:27]} Rxc2+ {[%emt 0:00:30]} 54. Kg1 {[%emt 0:00:07]} Rc7 {[%emt 0:00:14]} 55. Ra6 {[%emt 0:01:27]} g4 {[%emt 0:00:40]} 56. Kg2 {[%emt 0:00:48]} h5 {[%emt 0:00:49]} 57. Kg3 {[%emt 0:02:28]} h4+ {[%emt 0:01:07]} 58. Kxh4 {[%emt 0:00:07]} Rh7+ {[%emt 0:00:20]} 59. Kg3 {[%emt 0:00:31]} gxh3 {[%emt 0:00:30]} 60. Kh2 {[%emt 0:00:30]} Kg4 {[%emt 0:00:00]} 61. Ra3 {[%emt 0:01:16]} Rd7 {[%emt 0:00:00]} 62. Rb3 {[%emt 0:00:55]} Rd2+ {[%emt 0:00:00]} 63. Kh1 {[%emt 0:00:00]} Kg3 {[%emt 0:00:55]} 64. Rb1 {[%emt 0:00:02]} Rh2+ {[%emt 0:00:16]} 65. Kg1 {[%emt 0:00:00]} Rxa2 {[%emt 0:00:00]} 66. Kh1 {[%emt 0:00:28]} Rh2+ {[%emt 0:00:27]} 67. Kg1 {[%emt 0:00:30]} Rg2+ {[%emt 0:00:00]} 68. Kh1 {[%emt 0:00:00]} h2 {[%emt 0:00:00]} 69. Rf1 {[%emt 0:00:00]} Rg1+ {[%emt 0:00:01]} 0-1

[Event "Turkish Super League 2019"]
[Site "Konya"]
[Date "2019.07.21"]
[Round "5"]
[White "Selbes, Tarik"]
[Black "Haznedaroglu, Kivanc"]
[Result "0-1"]
[ECO "B08"]
[WhiteElo "2342"]
[BlackElo "2448"]
[Annotator "NA"]
[PlyCount "72"]
[EventDate "2019.07.17"]
[EventType "team-tourn"]
[EventCountry "TUR"]
[SourceTitle "playchess.com"]
[Source "ChessBase"]
[SourceQuality "1"]
[TimeControl "40/5400+30:1800+30"]

1. Nf3 g6 2. e4 Bg7 3. d4 d6 4. h3 Nf6 5. Nc3 c6 6. a4 O-O 7. a5 Qc7 8. Be3 Nbd7 9. Qd2 e5 10. dxe5 Nxe5 11. Nxe5 dxe5 12. Bc4 Rd8 13. Qe2 Nh5 14. g3 Bf8 {[%emt 0:24:00]} 15. Ra4 {[%emt 0:38:30]} Ng7 {[%emt 0:05:30]} 16. Nb1 {[%emt 0:11:30]} Ne6 {[%emt 0:02:30]} 17. c3 {[%emt 0:00:00]} Nc5 {[%emt 0:02:30]} 18. Bxc5 {[%emt 0:01:00]} Bxc5 {[%emt 0:00:00]} 19. Nd2 {[%emt 0:00:30]} Qe7 {[%emt 0:05:00]} 20. Nf3 {[%emt 0:15:30]} a6 {[%emt 0:08:30]} 21. Kf1 {[%emt 0:02:30]} Rd6 {[%emt 0:00:00]} 22. Kg2 {[%emt 0:01:30]} Rf6 {[%emt 0:00:00]} 23. b4 {[%emt 0:03:30]} Ba7 {[%emt 0:01:30]} 24. Ra2 {[%emt 0:00:30]} Bd7 {[%emt 0:00:30]} 25. Rd1 {[%emt 0:00:30]} Re8 {[%emt 0:01:30]} 26. Qd3 {[%emt 0:05:30]} Bc8 {[%emt 0:00:30]} 27. Nh2 {[%emt 0:02:58]} h5 {[%emt 0:03:30]} 28. Nf3 {[%emt 0:00:16]} Kg7 {[%emt 0:00:30]} 29. Rdd2 {[%emt 0:04:30]} h4 {[%emt 0:03:30]} 30. Nxh4 {[%emt 0:00:45]} Rh8 {[%emt 0:01:30]} 31. Ra1 {[%emt 0:09:48]} Rf4 {[%emt 0:17:30]} 32. gxf4 {[%emt 0:04:41]} Qxh4 {[%emt 0:00:30]} 33. Rh1 {[%emt 0:02:02]} exf4 {[%emt 0:00:30]} 34. Rh2 {[%emt 0:00:27]} f3+ {[%emt 0:01:30]} 35. Kh1 {[%emt 0:00:30]} Qg5 {[%emt 0:04:30]} 36. Rd1 {[%emt 0:00:51]} Rxh3 {[%emt 0:00:00]} 0-1

[Event "Turkish Super League 2019"]
[Site "Konya"]
[Date "2019.07.21"]
[Round "5"]
[White "Secer, Ata"]
[Black "Heberla, Bartlomiej"]
[Result "1-0"]
[ECO "B30"]
[WhiteElo "2324"]
[BlackElo "2534"]
[Annotator "ChessBase"]
[PlyCount "107"]
[EventDate "2019.07.17"]
[EventType "team-tourn"]
[EventCountry "TUR"]
[SourceTitle "playchess.com"]
[Source "ChessBase"]
[SourceQuality "1"]
[TimeControl "40/5400+30:1800+30"]

1. e4 c5 2. Nf3 Nc6 3. Bb5 e6 4. Bxc6 bxc6 5. b3 Ne7 6. Bb2 d5 7. e5 Ba6 8. d3 c4 9. dxc4 dxc4 10. Qxd8+ Rxd8 11. Nbd2 Nd5 12. Nxc4 {[%emt 0:32:00]} Bb4+ {[%emt 0:38:00]} 13. c3 {[%emt 0:10:30]} Bxc4 {[%emt 0:00:30]} 14. cxb4 {[%emt 0:21:30]} Ba6 {[%emt 0:00:30]} 15. O-O-O {[%emt 0:08:30]} Nxb4 {[%emt 0:00:30]} 16. Rxd8+ {[%emt 0:01:30]} Kxd8 {[%emt 0:00:30]} 17. Bd4 {[%emt 0:03:30]} c5 {[%emt 0:42:22]} 18. Be3 {[%emt 0:00:30]} Nxa2+ {[%emt 0:09:19]} 19. Kd2 {[%emt 0:00:30]} c4 {[%emt 0:00:42]} 20. bxc4 {[%emt 0:01:30]} Bxc4 {[%emt 0:00:06]} 21. Bxa7 {[%emt 0:00:00]} Kd7 {[%emt 0:01:50]} 22. Rb1 {[%emt 0:01:00]} Bd5 {[%emt 0:01:05]} 23. Bc5 {[%emt 0:07:47]} Rc8 {[%emt 0:00:23]} 24. Rb5 {[%emt 0:01:09]} Ra8 {[%emt 0:04:14]} 25. Nd4 {[%emt 0:04:03]} Ra4 {[%emt 0:00:32]} 26. f3 {[%emt 0:01:13]} Kc8 {[%emt 0:01:42]} 27. Rb2 {[%emt 0:02:21]} f6 {[%emt 0:00:04]} 28. exf6 {[%emt 0:02:09]} gxf6 {[%emt 0:00:30]} 29. Ne2 {[%emt 0:00:30]} Kd7 {[%emt 0:00:30]} 30. Rb8 {[%emt 0:00:17]} Rc4 {[%emt 0:01:00]} 31. Ba3 {[%emt 0:00:46]} Ra4 {[%emt 0:00:13]} 32. Bc5 {[%emt 0:00:08]} h5 {[%emt 0:00:15]} 33. Rh8 {[%emt 0:00:16]} Ra5 {[%emt 0:00:26]} 34. Rh7+ {[%emt 0:00:18]} Ke8 {[%emt 0:00:33]} 35. Bd4 {[%emt 0:02:38]} e5 {[%emt 0:00:15]} 36. Bb2 {[%emt 0:02:07]} Rb5 {[%emt 0:01:18]} 37. Ba3 {[%emt 0:00:21]} Bf7 {[%emt 0:00:40]} 38. Rh8+ {[%emt 0:00:11]} Kd7 {[%emt 0:00:01]} 39. Ra8 {[%emt 0:00:08]} Rb7 {[%emt 0:00:33]} 40. Ra6 {[%emt 0:00:00]} Bc4 {[%emt 0:00:00]} 41. Rd6+ {[%emt 0:08:08]} Ke8 {[%emt 0:00:57]} 42. Rxf6 {[%emt 0:05:54]} Rb3 {[%emt 0:01:30]} 43. Rf8+ {[%emt 0:00:06]} Kd7 {[%emt 0:00:00]} 44. Ra8 {[%emt 0:00:30]} Rd3+ {[%emt 0:05:00]} 45. Kc2 {[%emt 0:00:00]} Re3 {[%emt 0:00:30]} 46. Nc1 {[%emt 0:03:22]} e4 {[%emt 0:02:30]} 47. Kd2 {[%emt 0:04:09]} Rc3 {[%emt 0:01:30]} 48. fxe4 {[%emt 0:00:12]} Bb3 {[%emt 0:01:30]} 49. Nxb3 {[%emt 0:03:04]} Rxb3 {[%emt 0:00:30]} 50. Ra6 {[%emt 0:00:30]} Rb5 {[%emt 0:01:30]} 51. Kd3 {[%emt 0:01:19]} Rb3+ {[%emt 0:00:30]} 52. Kd4 {[%emt 0:00:23]} Rb1 {[%emt 0:00:30]} 53. e5 {[%emt 0:00:15]} Rd1+ {[%emt 0:01:58]} 54. Kc4 {[%emt 0:00:08]} 1-0

[Event "Turkish Super League 2019"]
[Site "Konya"]
[Date "2019.07.21"]
[Round "5"]
[White "Ozturk, Kubra"]
[Black "Buksa, Nataliya"]
[Result "1/2-1/2"]
[ECO "E20"]
[WhiteElo "2317"]
[BlackElo "2379"]
[Annotator "NA"]
[PlyCount "77"]
[EventDate "2019.07.17"]
[EventType "team-tourn"]
[EventCountry "TUR"]
[SourceTitle "playchess.com"]
[Source "ChessBase"]
[SourceQuality "1"]
[TimeControl "40/5400+30:1800+30"]

1. d4 Nf6 2. c4 e6 3. Nc3 Bb4 4. g3 O-O 5. Bg2 d5 6. Nf3 dxc4 7. O-O Nc6 8. Qa4 Nd5 9. Qc2 Rb8 10. e4 Nxc3 11. bxc3 Be7 12. Rd1 {[%emt 0:16:00]} b5 {[%emt 0:41:00]} 13. Bf4 {[%emt 0:03:30]} Bd6 {[%emt 0:05:30]} 14. Be3 {[%emt 0:11:30]} a5 {[%emt 0:00:30]} 15. e5 {[%emt 0:12:30]} Be7 {[%emt 0:01:30]} 16. Nd2 {[%emt 0:00:30]} Qe8 {[%emt 0:07:30]} 17. a4 {[%emt 0:02:30]} b4 {[%emt 0:03:30]} 18. Nxc4 {[%emt 0:02:30]} bxc3 {[%emt 0:01:30]} 19. Qxc3 {[%emt 0:00:30]} Bb4 {[%emt 0:00:30]} 20. Qc2 {[%emt 0:00:30]} Bb7 {[%emt 0:05:30]} 21. Be4 {[%emt 0:03:30]} h6 {[%emt 0:00:30]} 22. Rab1 {[%emt 0:00:30]} Ba8 {[%emt 0:02:30]} 23. Rbc1 {[%emt 0:09:30]} Ne7 {[%emt 0:00:30]} 24. Bxa8 {[%emt 0:03:30]} Rxa8 {[%emt 0:00:00]} 25. Nb2 {[%emt 0:03:30]} Nd5 {[%emt 0:06:00]} 26. Bd2 {[%emt 0:01:30]} Rb8 {[%emt 0:05:30]} 27. Nc4 {[%emt 0:01:30]} Qd7 {[%emt 0:06:24]} 28. Nxa5 {[%emt 0:01:30]} Bxa5 {[%emt 0:01:31]} 29. Bxa5 {[%emt 0:01:30]} Ra8 {[%emt 0:00:02]} 30. Qd2 {[%emt 0:01:30]} Ra7 {[%emt 0:01:22]} 31. Rc5 {[%emt 0:06:30]} Qxa4 {[%emt 0:00:21]} 32. Rdc1 {[%emt 0:00:00]} Rc8 {[%emt 0:01:26]} 33. R1c4 {[%emt 0:01:00]} Qa1+ {[%emt 0:01:28]} 34. Kg2 {[%emt 0:00:30]} Rb8 {[%emt 0:02:17]} 35. Rc1 {[%emt 0:02:01]} Rb1 {[%emt 0:02:12]} 36. Bc3 {[%emt 0:03:06]} Nxc3 {[%emt 0:01:49]} 37. R5xc3 {[%emt 0:01:26]} Rxc1 {[%emt 0:04:20]} 38. Rxc1 {[%emt 0:00:53]} Qa6 {[%emt 0:00:31]} 39. Qb4 {[%emt 0:04:11]} 1/2-1/2

[Event "Turkish Super League 2019"]
[Site "Konya"]
[Date "2019.07.21"]
[Round "5"]
[White "Tasdogen, Dincer"]
[Black "Keler, Faruk"]
[Result "1-0"]
[ECO "C45"]
[WhiteElo "2310"]
[BlackElo "2263"]
[Annotator "NA"]
[PlyCount "55"]
[EventDate "2019.07.17"]
[EventType "team-tourn"]
[EventCountry "TUR"]
[SourceTitle "playchess.com"]
[Source "ChessBase"]
[SourceQuality "1"]
[TimeControl "40/5400+30:1800+30"]

1. e4 e5 2. Nf3 Nc6 3. d4 exd4 4. Nxd4 Qf6 5. Nb5 Bc5 6. Qe2 Bb6 7. N1c3 Nge7 8. Be3 Ba5 9. O-O-O O-O {[%emt 0:28:30]} 10. Nd5 {[%emt 0:26:00]} Nxd5 {[%emt 0:00:30]} 11. exd5 {[%emt 0:00:30]} Ne7 {[%emt 0:08:30]} 12. d6 {[%emt 0:12:30]} Nf5 {[%emt 0:15:30]} 13. Nxc7 {[%emt 0:06:30]} Bxc7 {[%emt 0:00:30]} 14. dxc7 {[%emt 0:00:30]} Re8 {[%emt 0:06:30]} 15. Qd2 {[%emt 0:00:30]} Nxe3 {[%emt 0:14:30]} 16. Re1 {[%emt 0:00:30]} d6 {[%emt 0:02:30]} 17. Bb5 {[%emt 0:10:30]} Re5 {[%emt 0:03:14]} 18. Rxe3 {[%emt 0:01:30]} Be6 {[%emt 0:00:32]} 19. Be2 {[%emt 0:28:26]} Rc5 {[%emt 0:02:44]} 20. Bd3 {[%emt 0:08:15]} Bxa2 {[%emt 0:09:16]} 21. Qb4 {[%emt 0:00:01]} Rxc7 {[%emt 0:00:46]} 22. Qa5 {[%emt 0:00:01]} Qxf2 {[%emt 0:00:51]} 23. Rhe1 {[%emt 0:00:41]} Rcc8 {[%emt 0:01:13]} 24. Qxa2 {[%emt 0:00:34]} Qxg2 {[%emt 0:00:19]} 25. Re7 {[%emt 0:01:24]} d5 {[%emt 0:00:34]} 26. Qa4 {[%emt 0:01:03]} g6 {[%emt 0:00:42]} 27. Qf4 {[%emt 0:00:56]} Rf8 {[%emt 0:02:18]} 28. Rf1 {[%emt 0:00:01]} 1-0

[Event "Turkish Super League 2019"]
[Site "Konya"]
[Date "2019.07.21"]
[Round "5"]
[White "Caglar, Sila"]
[Black "Maltsevskaya, Aleksandra"]
[Result "0-1"]
[ECO "B23"]
[WhiteElo "2306"]
[BlackElo "2294"]
[Annotator "NA"]
[PlyCount "82"]
[EventDate "2019.07.17"]
[EventType "team-tourn"]
[EventCountry "TUR"]
[SourceTitle "playchess.com"]
[Source "ChessBase"]
[SourceQuality "1"]
[TimeControl "40/5400+30:1800+30"]

1. e4 c5 2. Nc3 e6 3. Nge2 Nc6 4. g3 Nge7 5. Bg2 g6 6. d4 cxd4 7. Nxd4 Bg7 8. Ndb5 O-O 9. O-O b6 10. Bf4 Ba6 11. a4 Ne5 {[%emt 0:32:30]} 12. b3 {[%emt 0:45:00]} Rc8 {[%emt 0:03:30]} 13. Qd2 {[%emt 0:07:30]} N7c6 {[%emt 0:16:30]} 14. Na2 {[%emt 0:13:30]} Bxb5 {[%emt 0:03:30]} 15. axb5 {[%emt 0:02:30]} Nd4 {[%emt 0:00:00]} 16. Kh1 {[%emt 0:06:30]} Nef3 {[%emt 0:12:00]} 17. Qd3 {[%emt 0:05:13]} Nxc2 {[%emt 0:07:30]} 18. Bxf3 {[%emt 0:00:31]} Nxa1 {[%emt 0:01:30]} 19. Bd6 {[%emt 0:00:36]} Nc2 {[%emt 0:03:19]} 20. Rc1 {[%emt 0:05:02]} Nd4 {[%emt 0:00:48]} 21. Bxf8 {[%emt 0:03:39]} Qxf8 {[%emt 0:00:17]} 22. Rc4 {[%emt 0:07:06]} Rxc4 {[%emt 0:09:38]} 23. bxc4 {[%emt 0:00:31]} Qc5 {[%emt 0:00:07]} 24. Bg2 {[%emt 0:00:17]} a5 {[%emt 0:02:27]} 25. bxa6 {[%emt 0:00:53]} Qa5 {[%emt 0:00:12]} 26. Nc3 {[%emt 0:01:24]} Qxa6 {[%emt 0:02:19]} 27. Nb5 {[%emt 0:01:07]} Qa1+ {[%emt 0:01:54]} 28. Qf1 {[%emt 0:01:30]} Qa2 {[%emt 0:00:40]} 29. Nxd4 {[%emt 0:00:41]} Bxd4 {[%emt 0:00:05]} 30. f4 {[%emt 0:00:23]} Kf8 {[%emt 0:01:28]} 31. Qd3 {[%emt 0:00:40]} Qf2 {[%emt 0:00:47]} 32. Qd1 {[%emt 0:00:46]} f6 {[%emt 0:00:51]} 33. h4 {[%emt 0:00:38]} e5 {[%emt 0:01:24]} 34. fxe5 {[%emt 0:00:57]} Bxe5 {[%emt 0:00:04]} 35. Qxd7 {[%emt 0:00:03]} Qe1+ {[%emt 0:01:11]} 36. Kh2 {[%emt 0:00:02]} Qxg3+ {[%emt 0:00:11]} 37. Kg1 {[%emt 0:00:06]} Qe1+ {[%emt 0:00:18]} 38. Bf1 {[%emt 0:00:13]} Qe3+ {[%emt 0:00:05]} 39. Kh1 {[%emt 0:00:44]} Qxe4+ {[%emt 0:00:09]} 40. Kg1 {[%emt 0:00:00]} Bd4+ {[%emt 0:00:55]} 41. Kh2 {[%emt 0:01:28]} Qf4+ {[%emt 0:00:21]} 0-1

[Event "Turkish Super League 2019"]
[Site "Konya"]
[Date "2019.07.21"]
[Round "5"]
[White "Dordzhieva, Dinara"]
[Black "Atalik, Ekaterina"]
[Result "1/2-1/2"]
[ECO "D76"]
[WhiteElo "2306"]
[BlackElo "2459"]
[Annotator "ChessBase"]
[PlyCount "95"]
[EventDate "2019.07.17"]
[EventType "team-tourn"]
[EventCountry "TUR"]
[SourceTitle "playchess.com"]
[Source "ChessBase"]
[SourceQuality "1"]
[TimeControl "40/5400+30:1800+30"]

1. Nf3 Nf6 2. g3 d5 3. Bg2 g6 4. c4 Bg7 5. cxd5 Nxd5 6. d4 Nb6 7. Nc3 Nc6 8. e3 O-O 9. O-O Re8 10. h3 e5 11. d5 Na5 12. Qc2 Nac4 13. Rd1 Nd6 14. e4 Rf8 15. b3 f5 16. a4 {[%emt 0:29:00]} Nd7 {[%emt 0:29:00]} 17. exf5 {[%emt 0:24:30]} gxf5 {[%emt 0:03:30]} 18. Ba3 {[%emt 0:02:30]} a6 {[%emt 0:08:30]} 19. Rac1 {[%emt 0:06:30]} Rf7 {[%emt 0:00:30]} 20. Qd2 {[%emt 0:07:30]} h6 {[%emt 0:03:30]} 21. Rc2 {[%emt 0:02:30]} Qf6 {[%emt 0:03:30]} 22. Ne2 {[%emt 0:03:30]} Bf8 {[%emt 0:18:30]} 23. Qc1 {[%emt 0:04:30]} Ne8 {[%emt 0:00:30]} 24. Bb2 {[%emt 0:03:50]} Qd6 {[%emt 0:04:30]} 25. Nd2 {[%emt 0:06:23]} Qg6 {[%emt 0:02:30]} 26. Nc4 {[%emt 0:01:20]} f4 {[%emt 0:06:30]} 27. Nd2 {[%emt 0:05:25]} Bd6 {[%emt 0:03:40]} 28. Nf3 {[%emt 0:04:52]} Ng7 {[%emt 0:06:36]} 29. gxf4 {[%emt 0:00:28]} exf4 {[%emt 0:00:59]} 30. Kh1 {[%emt 0:00:16]} Qh5 {[%emt 0:01:46]} 31. Neg1 {[%emt 0:00:46]} Nf6 {[%emt 0:01:16]} 32. Re2 {[%emt 0:00:11]} Bf5 {[%emt 0:01:56]} 33. Rde1 {[%emt 0:00:45]} Bd3 {[%emt 0:02:43]} 34. Re5 {[%emt 0:01:33]} Bxe5 {[%emt 0:00:40]} 35. Nxe5 {[%emt 0:00:19]} Bf5 {[%emt 0:02:06]} 36. Nxf7 {[%emt 0:00:43]} Qxf7 {[%emt 0:00:05]} 37. Qxf4 {[%emt 0:00:00]} Nxd5 {[%emt 0:00:41]} 38. Qd4 {[%emt 0:00:09]} c6 {[%emt 0:00:22]} 39. Qh4 {[%emt 0:00:53]} Qg6 {[%emt 0:00:59]} 40. Nf3 {[%emt 0:00:00]} Re8 {[%emt 0:00:00]} 41. Ne5 {[%emt 0:08:07]} Qg5 {[%emt 0:05:41]} 42. Qxg5 {[%emt 0:07:32]} hxg5 {[%emt 0:00:30]} 43. Bxd5+ {[%emt 0:02:08]} cxd5 {[%emt 0:00:00]} 44. Rg1 {[%emt 0:00:00]} Ne6 {[%emt 0:02:00]} 45. h4 {[%emt 0:00:13]} Rc8 {[%emt 0:00:30]} 46. Bc1 {[%emt 0:01:23]} Rc3 {[%emt 0:01:30]} 47. Bxg5 {[%emt 0:06:54]} Rxb3 {[%emt 0:00:30]} 48. Bf6+ {[%emt 0:02:10]} 1/2-1/2

[Event "Turkish Super League 2019"]
[Site "Konya"]
[Date "2019.07.21"]
[Round "5"]
[White "Injac, Teodora"]
[Black "Daulyte-Cornette, Deimante"]
[Result "1/2-1/2"]
[ECO "E97"]
[WhiteElo "2305"]
[BlackElo "2444"]
[Annotator "NA"]
[PlyCount "90"]
[EventDate "2019.07.17"]
[EventType "team-tourn"]
[EventCountry "TUR"]
[SourceTitle "playchess.com"]
[Source "ChessBase"]
[SourceQuality "1"]
[TimeControl "40/5400+30:1800+30"]

1. d4 Nf6 2. c4 g6 3. Nc3 Bg7 4. e4 d6 5. Nf3 O-O 6. Be2 e5 7. O-O Nc6 8. d5 Ne7 9. Kh1 a5 10. Ne1 Nd7 11. Nd3 f5 12. Bd2 fxe4 {[%emt 0:26:00]} 13. Nxe4 {[%emt 0:29:30]} Nf6 {[%emt 0:00:30]} 14. f3 {[%emt 0:14:30]} Nf5 {[%emt 0:07:30]} 15. Ndf2 {[%emt 0:03:30]} Kh8 {[%emt 0:10:30]} 16. Nxf6 {[%emt 0:04:30]} Qxf6 {[%emt 0:00:30]} 17. Ne4 {[%emt 0:00:30]} Qf7 {[%emt 0:00:30]} 18. Bd3 {[%emt 0:05:30]} Bd7 {[%emt 0:06:30]} 19. Qe1 {[%emt 0:04:30]} b6 {[%emt 0:01:30]} 20. g4 {[%emt 0:01:30]} Nd4 {[%emt 0:03:30]} 21. Qh4 {[%emt 0:02:30]} Qg8 {[%emt 0:05:30]} 22. f4 {[%emt 0:02:30]} exf4 {[%emt 0:08:30]} 23. Bxf4 {[%emt 0:01:30]} b5 {[%emt 0:01:30]} 24. Ng5 {[%emt 0:07:30]} Bf6 {[%emt 0:07:30]} 25. Be3 {[%emt 0:01:30]} Be5 {[%emt 0:01:30]} 26. Rae1 {[%emt 0:05:17]} c5 {[%emt 0:05:29]} 27. Bxd4 {[%emt 0:06:45]} cxd4 {[%emt 0:00:15]} 28. Nf3 {[%emt 0:05:00]} bxc4 {[%emt 0:04:05]} 29. Bxc4 {[%emt 0:00:34]} Bc6 {[%emt 0:03:50]} 30. Ng5 {[%emt 0:04:08]} Bxd5+ {[%emt 0:01:29]} 31. Bxd5 {[%emt 0:00:30]} Qxd5+ {[%emt 0:00:30]} 32. Kg1 {[%emt 0:00:00]} Qb7 {[%emt 0:02:47]} 33. Qh6 {[%emt 0:00:58]} Qg7 {[%emt 0:03:56]} 34. Qh3 {[%emt 0:00:05]} Qe7 {[%emt 0:00:51]} 35. Qh6 {[%emt 0:00:59]} Qg7 {[%emt 0:01:38]} 36. Qh3 {[%emt 0:00:01]} d3 {[%emt 0:00:52]} 37. Qxd3 {[%emt 0:01:18]} Qa7+ {[%emt 0:00:31]} 38. Kg2 {[%emt 0:02:58]} Qb7+ {[%emt 0:00:05]} 39. Qe4 {[%emt 0:00:51]} Qxb2+ {[%emt 0:00:58]} 40. Re2 {[%emt 0:00:00]} Qc3 {[%emt 0:00:00]} 41. Nf7+ {[%emt 0:27:47]} Kg7 {[%emt 0:05:44]} 42. Nxe5 {[%emt 0:01:35]} dxe5 {[%emt 0:00:30]} 43. Rxf8 {[%emt 0:00:54]} Rxf8 {[%emt 0:00:30]} 44. Qxe5+ {[%emt 0:00:58]} Qxe5 {[%emt 0:00:30]} 45. Rxe5 {[%emt 0:00:00]} Rf4 {[%emt 0:02:30]} 1/2-1/2